Workbook

Sheet 封面
A1: 2022年部门预算公开表
D4: 单位编码： | E4: 507001
D5: 单位名称： | E5: 岳阳县残疾人联合会

Sheet 目录
B1: 部门预算公开表
B3: 一、部门预算报表
B4: 1 | C4: 收支总表
B5: 2 | C5: 收入总表
B6: 3 | C6: 支出总表
B7: 4 | C7: 支出预算分类汇总表（按政府预算经济分类）
B8: 5 | C8: 支出预算分类汇总表（按部门预算经济分类）
B9: 6 | C9: 财政拨款收支总表
B10: 7 | C10: 一般公共预算支出表
B11: 8 | C11: 一般公共预算基本支出表
B12: 9 | C12: 一般公共预算基本支出表--人员经费(工资福利支出)(按政府预算经济分类)
B13: 10 | C13: 一般公共预算基本支出表--人员经费(工资福利支出)(按部门预算经济分类)
B14: 11 | C14: 一般公共预算基本支出表--人员经费(对个人和家庭的补助)(按政府预算经济分类)
B15: 12 | C15: 一般公共预算基本支出表--人员经费(对个人和家庭的补助)（按部门预算经济分类）
B16: 13 | C16: 一般公共预算基本支出表--公用经费(商品和服务支出)（按政府预算经济分类）
B17: 14 | C17: 一般公共预算基本支出表--公用经费(商品和服务支出)(按部门预算经济分类)
B18: 15 | C18: 一般公共预算“三公”经费支出表
B19: 16 | C19: 政府性基金预算支出表
B20: 17 | C20: 政府性基金预算支出分类汇总表（按政府预算经济分类）
B21: 18 | C21: 政府性基金预算支出分类汇总表（按部门预算经济分类）
B22: 19 | C22: 国有资本经营预算表
B23: 20 | C23: 财政专户管理资金预算支出表
B24: 21 | C24: 专项资金预算汇总表
B25: 22 | C25: 其他项目支出绩效目标表
B26: 23 | C26: 部门整体支出绩效目标表

Sheet 1收支总表
A2: 收支总表
A3: 单位：507001-岳阳县残疾人联合会 | G3: 金额单位：万元
A4: 收入 | C4: 支出
A5: 项目 | B5: 预算数 | C5: 项目（按功能分类） | D5: 预算数 | E5: 项目（按部门预算经济分类） | F5: 预算数 | G5: 项目（按政府预算经济分类） | H5: 预算数
A6: 一、一般公共预算拨款收入 | B6: 419.43 | C6: （一）一般公共服务支出 | E6: 一、基本支出 | F6: 211.73 | G6: 一、机关工资福利支出 | H6: 201.79
A7: 经费拨款 | B7: 419.43 | C7: （二）外交支出 | E7: 工资福利支出 | F7: 201.79 | G7: 二、机关商品和服务支出 | H7: 37.70
A8: 纳入一般公共预算管理的非税收入拨款 | C8: （三）国防支出 | E8: 商品和服务支出 | F8: 9.94 | G8: 三、机关资本性支出（一）
A9: 行政事业性收费收入 | C9: （四）公共安全支出 | E9: 对个人和家庭的补助 | G9: 四、机关资本性支出（二）
A10: 专项收入 | C10: （五）教育支出 | E10: 二、项目支出 | F10: 207.70 | G10: 五、对事业单位经常性补助 | H10: 9.94
A11: 国有资本经营收入 | C11: （六）科学技术支出 | E11: 按项目管理的工资福利支出 | G11: 六、对事业单位资本性补助
A12: 国有资源（资产）有偿使用收入 | C12: （七）文化旅游体育与传媒支出 | E12: 按项目管理的商品和服务支出 | F12: 37.70 | G12: 七、对企业补助
A13: 罚没收入 | C13: （八）社会保障和就业支出 | D13: 396.84 | E13: 按项目管理的对个人和家庭的补助 | F13: 170.00 | G13: 八、对企业资本性支出
A14: 捐赠收入 | C14: （九）社会保险基金支出 | E14: 债务利息及费用支出 | G14: 九、对个人和家庭的补助 | H14: 170.00
A15: 政府住房基金收入 | C15: （十）卫生健康支出 | D15: 9.37 | E15: 资本性支出（基本建设） | G15: 十、对社会保障基金补助
A16: 其他纳入一般公共预算管理的非税收入 | C16: （十一）节能环保支出 | E16: 资本性支出 | G16: 十一、债务利息及费用支出
A17: 一般债券 | C17: （十二）城乡社区支出 | E17: 对企业补助（基本建设） | G17: 十二、债务还本支出
A18: 外国政府和国际组织贷款 | C18: （十三）农林水支出 | E18: 对企业补助 | G18: 十三、转移性支出
A19: 外国政府和国际组织捐赠 | C19: （十四）交通运输支出 | E19: 对社会保障基金补助 | G19: 十四、其他支出
A20: 二、政府性基金预算拨款收入 | C20: （十五）资源勘探工业信息等支出 | E20: 其他支出
A21: 三、国有资本经营预算拨款收入 | C21: （十六）商业服务业等支出 | E21: 三、事业单位经营服务支出
A22: 四、社会保障基金预算资金 | C22: （十七）金融支出
A23: 五、财政专户管理资金收入 | C23: （十八）援助其他地区支出
A24: 六、上级财政补助收入 | C24: （十九）自然资源海洋气象等支出
A25: 一般公共预算补助 | C25: （二十）住房保障支出 | D25: 13.22
A26: 政府性基金补助 | C26: （二十一）粮油物资储备支出
A27: 国有资本经营预算补助 | C27: （二十二）国有资本经营预算支出
A28: 七、事业收入 | C28: （二十三）灾害防治及应急管理支出
A29: 八、事业单位经营收入 | C29: （二十四）预备费
A30: 九、上级单位补助收入 | C30: （二十五）其他支出
A31: 十、附属单位上缴收入 | C31: （二十六）转移性支出
A32: 十一、其他收入 | C32: （二十七）债务还本支出
C33: （二十八）债务付息支出
C34: （二十九）债务发行费用支出
C35: （三十）抗疫特别国债安排的支出
A37: 本 年 收 入 合 计 | B37: 419.43 | C37: 本 年 支 出 合 计 | D37: 419.43 | E37: 本 年 支 出 合 计 | F37: 419.43 | G37: 本 年 支 出 合 计 | H37: 419.43
A38: 上年结转结余 | C38: 年终结转结余 | E38: 年终结转结余 | G38: 年终结转结余
A40: 收 入 总 计 | B40: 419.43 | C40: 支 出 总 计 | D40: 419.43 | E40: 支 出 总 计 | F40: 419.43 | G40: 支 出 总 计 | H40: 419.43

Sheet 2收入总表
A2: 收入总表
A3: 单位：507001-岳阳县残疾人联合会 | X3: 金额单位：万元
A4: 部门（单位）代码 | B4: 部门（单位）名称 | C4: 合计 | D4: 本年收入 | S4: 上年结转结余
D5: 小计 | E5: 一般公共预算 | F5: 政府性基金预算 | G5: 国有资本经营预算 | H5: 社会保险基金预算资金 | I5: 财政专户管理资金 | J5: 上级财政补助收入 | N5: 事业收入 | O5: 事业单位经营收入 | P5: 上级单位补助收入 | Q5: 附属单位上缴收入 | R5: 其他收入 | S5: 小计 | T5: 一般公共预算 | U5: 政府性基金预算 | V5: 国有资本经营预算 | W5: 社会保险基金预算资金 | X5: 财政专户管理资金 | Y5: 单位资金
J6: 一般公共预算补助 | K6: 政府性基金补助 | L6: 国有资本经营预算补助 | M6: 社会保险基金预算资金
B7: 合计 | C7: 419.43 | D7: 419.43 | E7: 419.43
A8: 507 | B8: 岳阳县残疾人联合会 | C8: 419.43 | D8: 419.43 | E8: 419.43
A9: 507001 | B9: 岳阳县残疾人联合会 | C9: 419.43 | D9: 419.43 | E9: 419.43

Sheet 3支出总表
A2: 支出总表
A3: 单位：507001-岳阳县残疾人联合会 | K3: 金额单位：万元
A4: 功能科目 | D4: 科目编码 | E4: 科目名称 | F4: 合计 | G4: 基本支出 | H4: 项目支出 | I4: 事业单位经营支出 | J4: 上缴上级支出 | K4: 对附属单位补助支出
A5: 类 | B5: 款 | C5: 项
D6: 合计 | F6: 419.43 | G6: 211.73 | H6: 207.70
D7: 507 | E7: 岳阳县残疾人联合会 | F7: 419.43 | G7: 211.73 | H7: 207.70
D8: 507001 | E8: 岳阳县残疾人联合会 | F8: 419.43 | G8: 211.73 | H8: 207.70
A9: 208 | E9: 社会保障和就业支出 | F9: =F10+F13+F17 -> 396.84 | G9: =G10+G13+G17 -> 189.14 | H9: =H10+H13+H17 -> 207.70
A10: 208 | B10: 05 | E10: 行政事业单位养老支出 | F10: =F11+F12 -> 20.05 | G10: =G11+G12 -> 20.05 | H10: =H11+H12 -> 0.00
A11: 208 | B11: 05 | C11: 05 | D11: 2080505 | E11: 机关事业单位基本养老保险缴费支出 | F11: 17.63 | G11: 17.63
A12: 208 | B12: 05 | C12: 06 | D12: 2080506 | E12: 机关事业单位职业年金缴费支出 | F12: 2.42 | G12: 2.42
A13: 208 | B13: 11 | E13: 残疾人事业 | F13: =F14+F15+F16 -> 375.69 | G13: =G14+G15+G16 -> 167.99 | H13: =H14+H15+H16 -> 207.70
A14: 208 | B14: 11 | C14: 01 | D14: 2081101 | E14: 行政运行 | F14: 170.69 | G14: 167.99 | H14: 2.70
A15: 208 | B15: 11 | C15: 04 | D15: 2081104 | E15: 残疾人康复 | F15: 150.00 | H15: 150.00
A16: 208 | B16: 11 | C16: 05 | D16: 2081105 | E16: 残疾人就业 | F16: 55.00 | H16: 55.00
A17: 208 | B17: 99 | E17: 其他社会保障和就业支出 | F17: =F18 -> 1.10 | G17: =G18 -> 1.10
A18: 208 | B18: 99 | C18: 99 | D18: 2089999 | E18: 其他社会保障和就业支出 | F18: 1.10 | G18: 1.10
A19: 210 | E19: 卫生健康支出 | F19: =F20 -> 9.37 | G19: =G20 -> 9.37
A20: 210 | B20: 11 | E20: 行政事业单位医疗 | F20: =F21 -> 9.37 | G20: =G21 -> 9.37
A21: 210 | B21: 11 | C21: 01 | D21: 2101101 | E21: 行政单位医疗 | F21: 9.37 | G21: 9.37
A22: 221 | E22: 住房保障支出 | F22: =F23 -> 13.22 | G22: =G23 -> 13.22
A23: 221 | B23: 02 | E23: 住房改革支出 | F23: =F24 -> 13.22 | G23: =G24 -> 13.22
A24: 221 | B24: 02 | C24: 01 | D24: 2210201 | E24: 住房公积金 | F24: 13.22 | G24: 13.22

Sheet 4支出分类(政府预算)
A2: 支出预算分类汇总表（按政府预算经济分类）
A3: 单位：507001-岳阳县残疾人联合会 | S3: 金额单位：万元
A4: 功能科目 | D4: 单位代码 | E4: 单位名称（功能科目） | F4: 总 计 | G4: 机关工资福利支出 | H4: 机关商品和服务支出 | I4: 机关资本性支出(一) | J4: 机关资本性支出(二) | K4: 对事业单位经常性补助 | L4: 对事业单位资本性补助 | M4: 对企业补助 | N4: 对企业资本性支出 | O4: 对个人和家庭的补助 | P4: 对社会保障基金补助 | Q4: 债务利息及费用支出 | R4: 债务还本支出 | S4: 转移性支出 | T4: 其他支出
A5: 类 | B5: 款 | C5: 项
E6: 合计 | F6: 419.43 | G6: 201.79 | H6: 37.70 | K6: 9.94 | O6: 170.00
D7: 507 | E7: 岳阳县残疾人联合会 | F7: 419.43 | G7: 201.79 | H7: 37.70 | K7: 9.94 | O7: 170.00
D8: 507001 | E8: 岳阳县残疾人联合会 | F8: 419.43 | G8: 201.79 | H8: 37.70 | K8: 9.94 | O8: 170.00
A9: 208 | B9: 11 | C9: 01 | D9: 507001 | E9: 行政运行 | F9: 170.69 | G9: 158.05 | H9: 2.70 | K9: 9.94
A10: 208 | B10: 05 | C10: 05 | D10: 507001 | E10: 机关事业单位基本养老保险缴费支出 | F10: 17.63 | G10: 17.63
A11: 208 | B11: 05 | C11: 06 | D11: 507001 | E11: 机关事业单位职业年金缴费支出 | F11: 2.42 | G11: 2.42
A12: 208 | B12: 99 | C12: 99 | D12: 507001 | E12: 其他社会保障和就业支出 | F12: 1.10 | G12: 1.10
A13: 210 | B13: 11 | C13: 01 | D13: 507001 | E13: 行政单位医疗 | F13: 9.37 | G13: 9.37
A14: 221 | B14: 02 | C14: 01 | D14: 507001 | E14: 住房公积金 | F14: 13.22 | G14: 13.22
A15: 208 | B15: 11 | C15: 04 | D15: 507001 | E15: 残疾人康复 | F15: 150.00 | O15: 150.00
A16: 208 | B16: 11 | C16: 05 | D16: 507001 | E16: 残疾人就业 | F16: 55.00 | H16: 35.00 | O16: 20.00

Sheet 5支出分类（部门预算）
A2: 支出预算分类汇总表（按部门预算经济分类）
A3: 单位：507001-岳阳县残疾人联合会 | T3: 金额单位：万元
A4: 功能科目 | D4: 单位代码 | E4: 单位名称（功能科目） | F4: 总 计 | G4: 基本支出 | K4: 项目支出
A5: 类 | B5: 款 | C5: 项 | G5: 合计 | H5: 工资福利支出 | I5: 一般商品和服务支出 | J5: 对个人和家庭的补助 | K5: 合计 | L5: 按项目管理的工资福利支出 | M5: 按项目管理的商品和服务支出 | N5: 按项目管理的对个人和家庭的补助 | O5: 债务利息及费用支出 | P5: 资本性支出（基本建设） | Q5: 资本性支出 | R5: 对企业补助（基本建设） | S5: 对企业补助 | T5: 对社会保障基金补助 | U5: 其他支出
E6: 合计 | F6: 419.43 | G6: 211.73 | H6: 201.79 | I6: 9.94 | J6: 0.00 | K6: 207.70 | M6: 37.70 | N6: 170.00
D7: 507 | E7: 岳阳县残疾人联合会 | F7: 419.43 | G7: 211.73 | H7: 201.79 | I7: 9.94 | J7: 0.00 | K7: 207.70 | L7: 0.00 | M7: 37.70 | N7: 170.00
D8: 507001 | E8: 岳阳县残疾人联合会 | F8: 419.43 | G8: 211.73 | H8: 201.79 | I8: 9.94 | J8: 0.00 | K8: 207.70 | L8: 0.00 | M8: 37.70 | N8: 170.00
A9: 208 | B9: 11 | C9: 01 | D9: 507001 | E9: 行政运行 | F9: 170.69 | G9: 167.99 | H9: 158.05 | I9: 9.94 | K9: 2.70 | M9: 2.70
A10: 208 | B10: 05 | C10: 05 | D10: 507001 | E10: 机关事业单位基本养老保险缴费支出 | F10: 17.63 | G10: 17.63 | H10: 17.63
A11: 208 | B11: 05 | C11: 06 | D11: 507001 | E11: 机关事业单位职业年金缴费支出 | F11: 2.42 | G11: 2.42 | H11: 2.42
A12: 208 | B12: 99 | C12: 99 | D12: 507001 | E12: 其他社会保障和就业支出 | F12: 1.10 | G12: 1.10 | H12: 1.10
A13: 210 | B13: 11 | C13: 01 | D13: 507001 | E13: 行政单位医疗 | F13: 9.37 | G13: 9.37 | H13: 9.37
A14: 221 | B14: 02 | C14: 01 | D14: 507001 | E14: 住房公积金 | F14: 13.22 | G14: 13.22 | H14: 13.22
A15: 208 | B15: 11 | C15: 04 | D15: 507001 | E15: 残疾人康复 | F15: 150.00 | K15: 150.00 | N15: 150.00
A16: 208 | B16: 11 | C16: 05 | D16: 507001 | E16: 残疾人就业 | F16: 55.00 | K16: 55.00 | M16: 35.00 | N16: 20.00

Sheet 6财政拨款收支总表
A2: 财政拨款收支总表
A3: 单位：507001-岳阳县残疾人联合会 | D3: 金额单位：万元
A4: 收入 | C4: 支出
A5: 项目 | B5: 预算数 | C5: 项目 | D5: 预算数
A6: 一、本年收入 | B6: 419.43 | C6: 一、本年支出 | D6: 419.43
A7: （一）一般公共预算拨款 | B7: 419.43 | C7: （一）一般公共服务支出
A8: 经费拨款 | B8: 419.43 | C8: （二）外交支出
A9: 纳入一般公共预算管理的非税收入拨款 | C9: （三）国防支出
A10: （二）政府性基金预算拨款 | C10: （四）公共安全支出
A11: （三）国有资本经营预算拨款 | C11: （五）教育支出
A12: （四）社会保险基金预算资金 | C12: （六）科学技术支出
A13: 二、上年结转 | C13: （七）文化旅游体育与传媒支出
A14: （一）一般公共预算拨款 | C14: （八）社会保障和就业支出 | D14: 396.84
A15: （二）政府性基金预算拨款 | C15: （九）社会保险基金支出
A16: （三）国有资本经营预算拨款 | C16: （十）卫生健康支出 | D16: 9.37
A17: （四）社会保险基金预算资金 | C17: （十一）节能环保支出
C18: （十二）城乡社区支出
C19: （十三）农林水支出
C20: （十四）交通运输支出
C21: （十五）资源勘探工业信息等支出
C22: （十六）商业服务业等支出
C23: （十七）金融支出
C24: （十八）援助其他地区支出
C25: （十九）自然资源海洋气象等支出
C26: （二十）住房保障支出 | D26: 13.22
C27: （二十一）粮油物资储备支出
C28: （二十二）国有资本经营预算支出
C29: （二十三）灾害防治及应急管理支出
C30: （二十四）预备费
C31: （二十五）其他支出
C32: （二十六）转移性支出
C33: （二十七）债务还本支出
C34: （二十八）债务付息支出
C35: （二十九）债务发行费用支出
C36: （三十）抗疫特别国债安排的支出
C38: 二、年终结转结余
A40: 收 入 总 计 | B40: 419.43 | C40: 支 出 总 计 | D40: 419.43

Sheet 7一般公共预算支出表
A2: 一般公共预算支出表
A3: 单位：507001-岳阳县残疾人联合会 | J3: 金额单位：万元
A4: 功能科目 | D4: 科目编码 | E4: 科目名称 | F4: 合计 | G4: 基本支出 | K4: 项目支出
G5: 小计 | H5: 人员经费 | J5: 公用经费
A6: 类 | B6: 款 | C6: 项 | H6: 工资福利支出 | I6: 对个人和家庭的补助
E7: 合计 | F7: 419.43 | G7: 211.73 | H7: 201.79 | J7: 9.94 | K7: 207.70
D8: 507 | E8: 岳阳县残疾人联合会 | F8: 419.43 | G8: 211.73 | H8: 201.79 | J8: 9.94 | K8: 207.70
D9: 507001 | E9: 岳阳县残疾人联合会 | F9: 419.43 | G9: 211.73 | H9: 201.79 | J9: 9.94 | K9: 207.70
A10: 208 | E10: 社会保障和就业支出 | F10: =F11+F14+F18 -> 396.84 | G10: =G11+G14+G18 -> 189.14 | H10: =H11+H14+H18 -> 179.20 | J10: =J11+J14+J18 -> 9.94 | K10: =K11+K14+K18 -> 207.70
A11: 208 | B11: 05 | E11: 行政事业单位养老支出 | F11: =F12+F13 -> 20.05 | G11: =G12+G13 -> 20.05 | H11: =H12+H13 -> 20.05
A12: 208 | B12: 05 | C12: 05 | D12: 2080505 | E12: 机关事业单位基本养老保险缴费支出 | F12: 17.63 | G12: 17.63 | H12: 17.63
A13: 208 | B13: 05 | C13: 06 | D13: 2080506 | E13: 机关事业单位职业年金缴费支出 | F13: 2.42 | G13: 2.42 | H13: 2.42
A14: 208 | B14: 11 | E14: 残疾人事业 | F14: =F15+F16+F17 -> 375.69 | G14: =G15+G16+G17 -> 167.99 | H14: =H15+H16+H17 -> 158.05 | J14: =J15+J16+J17 -> 9.94 | K14: =K15+K16+K17 -> 207.70
A15: 208 | B15: 11 | C15: 01 | D15: 2081101 | E15: 行政运行 | F15: 170.69 | G15: 167.99 | H15: 158.05 | J15: 9.94 | K15: 2.70
A16: 208 | B16: 11 | C16: 04 | D16: 2081104 | E16: 残疾人康复 | F16: 150.00 | K16: 150.00
A17: 208 | B17: 11 | C17: 05 | D17: 2081105 | E17: 残疾人就业 | F17: 55.00 | K17: 55.00
A18: 208 | B18: 99 | E18: 其他社会保障和就业支出 | F18: =F19 -> 1.10 | G18: =G19 -> 1.10 | H18: =H19 -> 1.10
A19: 208 | B19: 99 | C19: 99 | D19: 2089999 | E19: 其他社会保障和就业支出 | F19: 1.10 | G19: 1.10 | H19: 1.10
A20: 210 | E20: 卫生健康支出 | F20: =F21 -> 9.37 | G20: 9.37 | H20: 9.37
A21: 210 | B21: 11 | E21: 行政事业单位医疗 | F21: 9.37 | G21: 9.37 | H21: 9.37
A22: 210 | B22: 11 | C22: 01 | D22: 2101101 | E22: 行政单位医疗 | F22: 9.37 | G22: 9.37 | H22: 9.37
A23: 221 | E23: 住房保障支出 | F23: =F24 -> 13.22 | G23: 13.22 | H23: 13.22
A24: 221 | B24: 02 | E24: 住房改革支出 | F24: 13.22 | G24: 13.22 | H24: 13.22
A25: 221 | B25: 02 | C25: 01 | D25: 2210201 | E25: 住房公积金 | F25: 13.22 | G25: 13.22 | H25: 13.22

Sheet 8一般公共预算基本支出表
A1: 一般公共预算基本支出表
A2: 单位：507001-岳阳县残疾人联合会 | E2: 金额单位：万元
A3: 部门预算支出经济分类科目 | C3: 本年一般公共预算基本支出
A4: 科目编码 | B4: 科目名称 | C4: 合计 | D4: 人员经费 | E4: 公用经费
A5: 301 | B5: 工资福利支出 | C5: =D5+E5 -> 201.79 | D5: =SUM(D6:D18) -> 201.79 | E5: =SUM(E6:E18) -> 0
A6: 30101 | B6: 基本工资 | C6: =D6+E6 -> 70.26 | D6: 70.26
A7: 30102 | B7: 津贴补贴 | C7: 47.87 | D7: 47.87
A8: 30103 | B8: 奖金 | C8: 0
A9: 30106 | B9: 伙食补助费 | C9: 0
A10: 30107 | B10: 绩效工资 | C10: 39.92 | D10: 39.92
A11: 30108 | B11: 机关事业单位基本养老保险缴费 | C11: 17.63 | D11: 17.63
A12: 30109 | B12: 职业年金缴费 | C12: 2.42 | D12: 2.42
A13: 30110 | B13: 职工基本医疗保险缴费 | C13: 8.26 | D13: 8.26
A14: 30111 | B14: 公务员医疗补助缴费 | C14: 1.10 | D14: 1.10
A15: 30112 | B15: 其他社会保障缴费 | C15: 1.10 | D15: 1.10
A16: 30113 | B16: 住房公积金 | C16: 13.22 | D16: 13.22
A17: 30114 | B17: 医疗费 | C17: 0
A18: 30199 | B18: 其他工资福利支出 | C18: 0
A19: 302 | B19: 商品和服务支出 | C19: 9.94 | D19: =SUM(D20:D34) -> 0 | E19: =SUM(E20:E34) -> 9.94
A20: 30201 | B20: 办公费 | C20: 1.98 | E20: 1.98
A21: 30202 | B21: 印刷费 | C21: 0.44 | E21: 0.44
A22: 30211 | B22: 差旅费 | C22: 2.64 | E22: 2.64
A23: 30212 | B23: 因公出国（境）费用 | C23: 0
A24: 30213 | B24: 维修（护）费 | C24: 0.37 | E24: 0.37
A25: 30214 | B25: 租赁费 | C25: 0
A26: 30215 | B26: 会议费 | C26: 0
A27: 30216 | B27: 培训费 | C27: 0
A28: 30217 | B28: 公务接待费 | C28: 1.51 | E28: 1.51
A29: 30228 | B29: 工会经费 | C29: 2.00 | E29: 2.00
A30: 30229 | B30: 福利费 | C30: 0
A31: 30231 | B31: 公务用车运行维护费 | C31: 1.00 | E31: 1.00
A32: 30239 | B32: 其他交通费用 | C32: 0
A33: 30240 | B33: 税金及附加费用 | C33: 0
A34: 30299 | B34: 其他商品和服务支出 | C34: 0
A35: 合计 | C35: =C19+C5 -> 211.73 | D35: =D19+D5 -> 201.79 | E35: 9.94

Sheet 9工资福利(政府预算)
A2: 一般公共预算基本支出表--人员经费(工资福利支出)(按政府预算经济分类)
A3: 单位：507001-岳阳县残疾人联合会 | M3: 金额单位：万元
A4: 功能科目 | D4: 单位代码 | E4: 单位名称（功能科目） | F4: 总 计 | G4: 机关工资福利支出 | L4: 对事业单位经常性补助
A5: 类 | B5: 款 | C5: 项 | G5: 合计 | H5: 工资奖金津补贴 | I5: 社会保障缴费 | J5: 住房公积金 | K5: 其他工资福利支出 | L5: 合计 | M5: 工资福利支出 | N5: 其他对事业单位补助
E6: 合计 | F6: 201.79 | G6: 201.79 | H6: 158.05 | I6: 30.52 | J6: 13.22
D7: 507 | E7: 岳阳县残疾人联合会 | F7: 201.79 | G7: 201.79 | H7: 158.05 | I7: 30.52 | J7: 13.22
D8: 507001 | E8: 岳阳县残疾人联合会 | F8: 201.79 | G8: 201.79 | H8: 158.05 | I8: 30.52 | J8: 13.22
A9: 208 | B9: 05 | C9: 05 | D9: 507001 | E9: 机关事业单位基本养老保险缴费支出 | F9: 17.63 | G9: 17.63 | I9: 17.63
A10: 208 | B10: 05 | C10: 06 | D10: 507001 | E10: 机关事业单位职业年金缴费支出 | F10: 2.42 | G10: 2.42 | I10: 2.42
A11: 208 | B11: 11 | C11: 01 | D11: 507001 | E11: 行政运行 | F11: 158.05 | G11: 158.05 | H11: 158.05
A12: 208 | B12: 99 | C12: 99 | D12: 507001 | E12: 其他社会保障和就业支出 | F12: 1.10 | G12: 1.10 | I12: 1.10
A13: 210 | B13: 11 | C13: 01 | D13: 507001 | E13: 行政单位医疗 | F13: 9.37 | G13: 9.37 | I13: 9.37
A14: 221 | B14: 02 | C14: 01 | D14: 507001 | E14: 住房公积金 | F14: 13.22 | G14: 13.22 | J14: 13.22

Sheet 10工资福利
A2: 一般公共预算基本支出表--人员经费(工资福利支出)(按部门预算经济分类)
A3: 单位：507001-岳阳县残疾人联合会 | U3: 金额单位：万元
A4: 功能科目 | D4: 单位代码 | E4: 单位名称（功能科目） | F4: 总 计 | G4: 工资津补贴 | L4: 社会保障缴费 | R4: 住房公积金 | S4: 其他工资福利支出
A5: 类 | B5: 款 | C5: 项 | G5: 合计 | H5: 基本工资 | I5: 津贴补贴 | J5: 奖金 | K5: 绩效工资 | L5: 合计 | M5: 机关事业单位基本养老保险缴费 | N5: 职业年金缴费 | O5: 职工基本医疗保险缴费 | P5: 公务员医疗补助缴费 | Q5: 其他社会保障缴费 | S5: 合计 | T5: 伙食补助费 | U5: 医疗费 | V5: 其他工资福利支出
E6: 合计 | F6: 201.79 | G6: 158.05 | H6: 70.26 | I6: 47.87 | K6: 39.92 | L6: 30.52 | M6: 17.63 | N6: 2.42 | O6: 8.26 | P6: 1.10 | Q6: 1.10 | R6: 13.22
D7: 507 | E7: 岳阳县残疾人联合会 | F7: 201.79 | G7: 158.05 | H7: 70.26 | I7: 47.87 | K7: 39.92 | L7: 30.52 | M7: 17.63 | N7: 2.42 | O7: 8.26 | P7: 1.10 | Q7: 1.10 | R7: 13.22
D8: 507001 | E8: 岳阳县残疾人联合会 | F8: 201.79 | G8: 158.05 | H8: 70.26 | I8: 47.87 | K8: 39.92 | L8: 30.52 | M8: 17.63 | N8: 2.42 | O8: 8.26 | P8: 1.10 | Q8: 1.10 | R8: 13.22
A9: 208 | B9: 05 | C9: 05 | D9: 507001 | E9: 机关事业单位基本养老保险缴费支出 | F9: 17.63 | L9: 17.63 | M9: 17.63
A10: 208 | B10: 05 | C10: 06 | D10: 507001 | E10: 机关事业单位职业年金缴费支出 | F10: 2.42 | L10: 2.42 | N10: 2.42
A11: 208 | B11: 11 | C11: 01 | D11: 507001 | E11: 行政运行 | F11: 158.05 | G11: 158.05 | H11: 70.26 | I11: 47.87 | K11: 39.92
A12: 208 | B12: 99 | C12: 99 | D12: 507001 | E12: 其他社会保障和就业支出 | F12: 1.10 | L12: 1.10 | Q12: 1.10
A13: 210 | B13: 11 | C13: 01 | D13: 507001 | E13: 行政单位医疗 | F13: 9.37 | L13: 9.37 | O13: 8.26 | P13: 1.10
A14: 221 | B14: 02 | C14: 01 | D14: 507001 | E14: 住房公积金 | F14: 13.22 | R14: 13.22

Sheet 11个人家庭(政府预算)
A2: 一般公共预算基本支出表--人员经费(对个人和家庭的补助)(按政府预算经济分类)
A3: 单位：507001-岳阳县残疾人联合会 | J3: 金额单位：万元
A4: 功能科目 | D4: 单位代码 | E4: 单位名称（功能科目） | F4: 总计 | G4: 社会福利和救济 | H4: 助学金 | I4: 个人农业生产补贴 | J4: 离退休费 | K4: 其他对个人和家庭的补助
A5: 类 | B5: 款 | C5: 项
E6: 合计 | F6: 0.00
A10: 注：本单位无对个人和家庭的补助，故本表无数据。

Sheet 12个人家庭
A2: 一般公共预算基本支出表--人员经费(对个人和家庭的补助)（按部门预算经济分类）
A3: 单位：507001-岳阳县残疾人联合会 | Q3: 金额单位：万元
A4: 功能科目 | D4: 单位代码 | E4: 单位名称（功能科目） | F4: 总计 | G4: 离休费 | H4: 退休费 | I4: 退职（役）费 | J4: 抚恤金 | K4: 生活补助 | L4: 救济费 | M4: 医疗费补助 | N4: 助学金 | O4: 奖励金 | P4: 代缴社会保险费 | Q4: 个人农业生产补贴 | R4: 其他对个人和家庭的补助
A5: 类 | B5: 款 | C5: 项
E6: 合计 | F6: 0.00
A10: 注：本单位无对个人和家庭的补助，故本表无数据。

Sheet 13商品服务(政府预算)
A2: 一般公共预算基本支出表--公用经费(商品和服务支出)（按政府预算经济分类）
A3: 单位：507001-岳阳县残疾人联合会 | S3: 金额单位：万元
A4: 功能科目 | D4: 单位代码 | E4: 单位名称（功能科目） | F4: 总计 | G4: 机关商品和服务支出 | R4: 对事业单位经常性补助
A5: 类 | B5: 款 | C5: 项 | G5: 合计 | H5: 办公经费 | I5: 会议费 | J5: 培训费 | K5: 专用材料购置费 | L5: 委托业务费 | M5: 公务接待费 | N5: 因公出国（境）费用 | O5: 公务用车运行维护费 | P5: 维修(护)费 | Q5: 其他商品和服务支出 | R5: 合计 | S5: 商品和服务支出 | T5: 其他对事业单位补助
E6: 合计 | F6: 9.94 | R6: 9.94 | S6: 9.94
D7: 507 | E7: 岳阳县残疾人联合会 | F7: 9.94 | R7: 9.94 | S7: 9.94
D8: 507001 | E8: 岳阳县残疾人联合会 | F8: 9.94 | R8: 9.94 | S8: 9.94
A9: 208 | B9: 11 | C9: 01 | D9: 507001 | E9: 行政运行 | F9: 9.94 | R9: 9.94 | S9: 9.94

Sheet 14商品服务
A2: 一般公共预算基本支出表--公用经费(商品和服务支出)(按部门预算经济分类)
A3: 单位：507001-岳阳县残疾人联合会 | AF3: 金额单位：万元
A4: 功能科目 | D4: 单位代码 | E4: 单位名称（功能科目） | F4: 总 计 | G4: 办公费 | H4: 印刷费 | I4: 咨询费 | J4: 手续费 | K4: 水费 | L4: 电费 | M4: 邮电费 | N4: 取暖费 | O4: 物业管理费 | P4: 差旅费 | Q4: 因公出国（境）费用 | R4: 维修(护)费 | S4: 租赁费 | T4: 会议费 | U4: 培训费 | V4: 公务接待费 | W4: 专用材料费 | X4: 被装购置费 | Y4: 专用燃料费 | Z4: 劳务费 | AA4: 委托业务费 | AB4: 工会经费 | AC4: 福利费 | AD4: 公务用车运行维护费 | AE4: 其他交通费用 | AF4: 税金及附加费用 | AG4: 其他商品和服务支出
A5: 类 | B5: 款 | C5: 项
E6: 合计 | F6: 9.94 | G6: 1.98 | H6: 0.44 | P6: 2.64 | R6: 0.37 | V6: 1.51 | AB6: 2.00 | AD6: 1.00
D7: 507 | E7: 岳阳县残疾人联合会 | F7: 9.94 | G7: 1.98 | H7: 0.44 | P7: 2.64 | R7: 0.37 | V7: 1.51 | AB7: 2.00 | AD7: 1.00
D8: 507001 | E8: 岳阳县残疾人联合会 | F8: 9.94 | G8: 1.98 | H8: 0.44 | P8: 2.64 | R8: 0.37 | V8: 1.51 | AB8: 2.00 | AD8: 1.00
A9: 208 | B9: 11 | C9: 01 | D9: 507001 | E9: 行政运行 | F9: 9.94 | G9: 1.98 | H9: 0.44 | P9: 2.64 | R9: 0.37 | V9: 1.51 | AB9: 2.00 | AD9: 1.00

Sheet 15三公
A2: 一般公共预算“三公”经费支出表
A3: 单位：507001-岳阳县残疾人联合会 | G3: 金额单位：万元
A4: 单位编码 | B4: 单位名称 | C4: “三公”经费合计 | D4: 因公出国（境）费 | E4: 公务用车购置及运行费 | H4: 公务接待费
E5: 小计 | F5: 公务用车购置费 | G5: 公务用车运行费
B6: 合计 | C6: 2.51 | E6: 1.00 | G6: 1.00 | H6: 1.51
A7: 507 | B7: 岳阳县残疾人联合会 | C7: 2.51 | E7: 1.00 | G7: 1.00 | H7: 1.51
A8: 507001 | B8: 岳阳县残疾人联合会 | C8: 2.51 | E8: 1.00 | G8: 1.00 | H8: 1.51

Sheet 16政府性基金
A2: 政府性基金预算支出表
A3: 单位：507001-岳阳县残疾人联合会 | G3: 金额单位：万元
A4: 科目编码 | B4: 科目名称 | C4: 合计 | D4: 本年政府性基金预算支出 | H4: 项目支出
D5: 小计 | E5: 人员经费 | G5: 公用经费
E6: 工资福利支出 | F6: 对个人和家庭的补助
B7: 合计 | C7: 0.00
A13: 注：本单位无政府性基金预算支出，故本表无数据。

Sheet 17政府性基金(政府预算)
A2: 政府性基金预算支出分类汇总表（按政府预算经济分类）
A3: 单位：507001-岳阳县残疾人联合会 | S3: 金额单位：万元
A4: 功能科目 | D4: 单位代码 | E4: 单位名称（功能科目） | F4: 总 计 | G4: 机关工资福利支出 | H4: 机关商品和服务支出 | I4: 机关资本性支出(一) | J4: 机关资本性支出(二) | K4: 对事业单位经常性补助 | L4: 对事业单位资本性补助 | M4: 对企业补助 | N4: 对企业资本性支出 | O4: 对个人和家庭的补助 | P4: 对社会保障基金补助 | Q4: 债务利息及费用支出 | R4: 债务还本支出 | S4: 转移性支出 | T4: 其他支出
A5: 类 | B5: 款 | C5: 项
E6: 合计 | F6: 0.00
A10: 注：本单位无政府性基金预算支出，故本表无数据。

Sheet 18政府性基金（部门预算）
A2: 政府性基金预算支出分类汇总表（按部门预算经济分类）
A3: 单位：507001-岳阳县残疾人联合会 | P3: 金额单位：万元
A4: 功能科目 | D4: 单位代码 | E4: 单位名称（功能科目） | F4: 总 计 | G4: 基本支出 | K4: 项目支出
A5: 类 | B5: 款 | C5: 项 | G5: 合计 | H5: 工资福利支出 | I5: 一般商品和服务支出 | J5: 对个人和家庭的补助 | K5: 合计 | L5: 按项目管理的商品和服务支出 | M5: 按项目管理的对个人和家庭的补助 | N5: 债务利息及费用支出 | O5: 资本性支出（基本建设） | P5: 资本性支出 | Q5: 对企业补助（基本建设） | R5: 对企业补助 | S5: 对社会保障基金补助 | T5: 其他支出
E6: 合计 | F6: 0.00
A10: 注：本单位无政府性基金预算支出，故本表无数据。

Sheet 19国有资本经营预算
A2: 国有资本经营预算支出表
A3: 单位：507001-岳阳县残疾人联合会 | H3: 金额单位：万元
A4: 科目编码 | B4: 科目名称 | C4: 合计 | D4: 本年国有资本经营预算支出 | H4: 项目支出
D5: 小计 | E5: 人员经费 | G5: 公用经费
E6: 工资福利支出 | F6: 对个人和家庭的补助
B7: 合计 | C7: 0.00
A13: 注：本单位无国有资本经营预算支出，故本表无数据。

Sheet 20财政专户管理资金
A2: 财政专户管理资金预算支出表
A3: 单位：507001-岳阳县残疾人联合会 | H3: 金额单位：万元
A4: 科目编码 | B4: 科目名称 | C4: 合计 | D4: 本年财政专户管理资金预算支出 | H4: 项目支出
D5: 小计 | E5: 人员经费 | G5: 公用经费
E6: 工资福利支出 | F6: 对个人和家庭的补助
B7: 合计 | C7: 0.00
A13: 注：本单位无财政专户管理资金预算支出，故本表无数据。

Sheet 21专项清单
A2: 专项资金预算汇总表
A3: 单位：507001-岳阳县残疾人联合会 | N3: 金额单位：万元
A4: 单位代码 | C4: 单位名称（专项名称） | D4: 预算额度 | N4: 预算编制方式
D5: 总计 | E5: 一般公共预算 | K5: 政府性基金 | L5: 国有资本经营预算 | M5: 社会保险基金预算资金 | N5: 编入部门预算金额 | O5: 财政代编金额
E6: 一般公共预算小计 | F6: 经费拨款 | G6: 纳入一般公共预算管理的非税收入 | H6: 一般债券 | I6: 外国政府和国际组织贷款 | J6: 外国政府和国际组织赠款
C7: 合计 | D7: 207.70 | E7: 207.70 | F7: 207.70 | N7: 207.70
A8: 507 | C8: 岳阳县残疾人联合会 | D8: 207.70 | E8: 207.70 | F8: 207.70 | N8: 207.70
A9: 507001 | B9: 运转其他类其他运转经费 | C9: 其他运转经费 | D9: 2.70 | E9: 2.70 | F9: 2.70 | N9: 2.70
A10: 507001 | B10: 特定目标类残疾儿童康复救助配套 | C10: 残疾儿童康复救助配套 | D10: 150.00 | E10: 150.00 | F10: 150.00 | N10: 150.00
A11: 507001 | B11: 特定目标类残疾人就业服务 | C11: 残疾人就业服务 | D11: 35.00 | E11: 35.00 | F11: 35.00 | N11: 35.00
A12: 507001 | B12: 特定目标类残疾人专项 | C12: 残疾人专项 | D12: 20.00 | E12: 20.00 | F12: 20.00 | N12: 20.00

Sheet 22项目支出绩效目标表
C1: 项目支出绩效目标表
A2: 单位：507001-岳阳县残疾人联合会 | L2: 金额单位：万元
A3: 单位代码 | B3: 单位（专项）名称 | C3: 资金总额 | D3: 实施期绩效目标 | E3: 绩效指标
E4: 一级指标 | F4: 二级指标 | G4: 三级指标 | H4: 指标值 | I4: 指标值内容 | J4: 评（扣分标准） | K4: 度量单位 | L4: 指标值类型 | M4: 备注
A5: 507001 | B5: 岳阳县残疾人联合会 | C5: 207.70
A6: 507001 | B6: 残疾儿童康复救助配套 | C6: 150.00 | D6: 0-7岁残疾儿童康复救助全覆盖，在训儿童每人每月对机构补贴1.5万元，年度预计完成200人。 | E6: 产出指标 | F6: 社会成本指标 | G6: 无 | H6: 无 | I6: 无 | J6: 无 | K6: 元 | L6: 定量
F7: 数量指标 | G7: 补贴人数 | H7: 200人 | I7: 残疾儿童康复救助200人 | J7: 按指标值酌情扣分 | K7: 人 | L7: 定量
F8: 生态环境成本指标 | G8: 无 | H8: 无 | I8: 无 | J8: 无 | K8: 元 | L8: 定量
F9: 时效指标 | G9: 1-12月 | H9: 1-12月 | I9: 2022年12月31日前 | J9: 按指标值酌情扣分 | K9: 月 | L9: 定量
F10: 质量指标 | G10: 儿童康复效果明显 | H10: 效果明显 | I10: 儿童康复率效果明显 | J10: 按指标值酌情扣分 | K10: 无 | L10: 定性
F11: 经济成本指标 | G11: 补贴金额 | H11: ≤1500000元 | I11: 投入资金150万元 | J11: 按指标值酌情扣分 | K11: 元 | L11: ≤
E12: 效益指标 | F12: 社会效益指标 | G12: 补助人群生活改善情况 | H12: 有所提升 | I12: 补助人群生活有所提升 | J12: 按指标值酌情扣分 | K12: 无 | L12: 定性
F13: 生态效益指标 | G13: 无 | H13: 无 | I13: 无 | J13: 无 | K13: 无 | L13: 定性
F14: 经济效益指标 | G14: 经济收入 | H14: 有所增长 | I14: 补助人群经济收入有所增长 | J14: 按指标值酌情扣分 | K14: 无 | L14: 定性
E15: 满意度指标 | F15: 服务对象满意度指标 | G15: 受益对象满意度 | H15: ≥96% | I15: 受益对象满意率 | J15: 按指标值酌情扣分 | K15: % | L15: ≥
A16: 507001 | B16: 残疾人就业服务 | C16: 35.00 | D16: 完成按比例安排残疾人50人、残疾人就业培训150人次等工作任务。 | E16: 产出指标 | F16: 质量指标 | G16: 高质量完成 | H16: 高质量完成 | I16: 质量指标 | J16: 按指标值标准扣分 | K16: 无 | L16: 定性
F17: 经济成本指标 | G17: 预算控制数 | H17: ≤350000元 | I17: 残疾人就业服务 | J17: 按指标值标准扣分 | K17: 元 | L17: ≤
F18: 时效指标 | G18: 1-12月 | H18: 1-12月 | I18: 2022年12月前完成 | J18: 按指标值标准扣分 | K18: 月 | L18: 定量
F19: 数量指标 | G19: 补贴人数 | H19: 200人 | I19: 完成按比例安排残疾人50人、残疾人就业培训150人次 | J19: 按指标值标准扣分 | K19: 人 | L19: 定量
F20: 生态环境成本指标 | G20: 无 | H20: 0 | I20: 无 | J20: 无 | K20: 元 | L20: 定量
F21: 社会成本指标 | G21: 无 | H21: 0 | I21: 无 | J21: 无 | K21: 元 | L21: 定量
E22: 效益指标 | F22: 社会效益指标 | G22: 补助人群收入得到提高 | H22: 有所改善 | I22: 反映良好 | J22: 按指标值标准扣分 | K22: 元 | L22: 定性
F23: 生态效益指标 | G23: 无 | H23: 无 | I23: 无 | J23: 无 | K23: 无 | L23: 定性
F24: 经济效益指标 | G24: 无 | H24: 无 | I24: 无 | J24: 无 | K24: 无 | L24: 定性
E25: 满意度指标 | F25: 服务对象满意度指标 | G25: 服务对象满意度 | H25: ≥96% | I25: 服务对象满意率 | J25: 按指标值标准扣分 | K25: % | L25: ≥
A26: 507001 | B26: 残疾人专项 | C26: 20.00 | D26: 完成残疾人教育资助200人、托养170人、无障碍改造80户等项目支出。 | E26: 产出指标 | F26: 时效指标 | G26: 补助资金发放时间 | H26: 1-12月 | I26: 2022年12月31日前 | J26: 未达指标值酌情扣分 | K26: 月 | L26: 定量
F27: 质量指标 | G27: 补助发放率 | H27: ≥100% | I27: 补助发放率100% | J27: 未达指标值酌情扣分 | K27: % | L27: ≥
F28: 生态环境成本指标 | G28: 无 | H28: 无 | I28: 无 | J28: 无 | K28: 元 | L28: 定量
F29: 数量指标 | G29: 补贴个人数量 | H29: 450人 | I29: 完成残疾人教育资助200人、托养170人、无障碍改造80户 | J29: 未达指标值酌情扣分 | K29: 人 | L29: 定量
F30: 经济成本指标 | G30: 预算控制数 | H30: ≤200000元 | I30: 投入资金20万元 | J30: 未达指标值酌情扣分 | K30: 元 | L30: ≤
F31: 社会成本指标 | G31: 无 | H31: 无 | I31: 无 | J31: 无 | K31: 元 | L31: 定量
E32: 满意度指标 | F32: 服务对象满意度指标 | G32: 服务对象满意度 | H32: ≥96% | I32: 服务对象满意率 | J32: 未达指标值酌情扣分 | K32: % | L32: ≥
E33: 效益指标 | F33: 社会效益指标 | G33: 补助人群生活改善情况 | H33: 有所改善 | I33: 补助人群生活有所提升 | J33: 未达指标值酌情扣分 | K33: 无 | L33: 定性
F34: 经济效益指标 | G34: 经济收入 | H34: 有所增长 | I34: 补助人群经济有所增长 | J34: 未达指标值酌情扣分 | K34: 无 | L34: 定性
F35: 生态效益指标 | G35: 无 | H35: 无 | I35: 无 | J35: 无 | K35: 无 | L35: 定性
A36: 507001 | B36: 其他运转经费 | C36: 2.70 | D36: 确保残联机关及就业服务站运转正常 | E36: 产出指标 | F36: 社会成本指标 | G36: 无 | H36: 0 | I36: 无 | J36: 无 | K36: 元 | L36: 定量
F37: 时效指标 | G37: 会议完成时间 | H37: 1年 | I37: 2022年12月前 | J37: 未达指标什酌情扣分 | K37: 年 | L37: 定量
F38: 质量指标 | G38: 会议标准 | H38: 高质量 | I38: 高质量高标准完成 | J38: 未达指标什酌情扣分 | K38: % | L38: 定性
F39: 数量指标 | G39: 会议次数 | H39: 12次 | I39: 全年度会议12次 | J39: 未达指标什酌情扣分 | K39: 次 | L39: 定量
F40: 经济成本指标 | G40: 会议费 | H40: ≤27000元 | I40: 会议费 | J40: 未达指标什酌情扣分 | K40: 元 | L40: ≤
F41: 生态环境成本指标 | G41: 无 | H41: 0 | I41: 无 | J41: 无 | K41: 元 | L41: 定量
E42: 效益指标 | F42: 社会效益指标 | G42: 按会议精神落实到位 | H42: 100% | I42: 按会议精神100%传达落实 | J42: 未达指标什酌情扣分 | K42: % | L42: 定量
F43: 经济效益指标 | G43: 无 | H43: 无 | I43: 无 | J43: 无 | L43: 定量
F44: 生态效益指标 | G44: 无 | H44: 无 | I44: 无 | J44: 无
E45: 满意度指标 | F45: 服务对象满意度指标 | G45: 服务对象满意度 | H45: ≥96% | I45: 满意 | J45: 未达指标什酌情扣分 | K45: % | L45: ≥

Sheet 23整体支出绩效目标表
A1: 整体支出绩效目标表
A2: 单位：岳阳县残疾人联合会 | Q2: 金额单位：万元
A3: 单位编码 | B3: 单位名称 | C3: 年度预算申请 | J3: 整体绩效目标 | K3: 部门整体支出年度绩效目标
C4: 资金总额 | D4: 按收入性质分 | H4: 按支出性质分
D5: 一般公共预算 | E5: 政府性基金拨款 | F5: 财政专户管理资金 | G5: 其他资金 | H5: 基本支出 | I5: 项目支出 | K5: 一级指标 | L5: 二级指标 | M5: 三级指标 | N5: 指标值类型 | O5: 指标值 | P5: 度量单位 | Q5: 指标值说明 | R5: 备注
A6: 507001 | B6: 岳阳县残疾人联合会 | C6: 419.43 | D6: 419.43 | H6: 211.73 | I6: 207.70 | J6: 代表残疾人共同利益，维护残疾人合法权益；团结帮助残疾人，为残疾人服务。履行法律赋予的职责，承担政府委托的任务，管理和发展残疾人事业。 | K6: 产出指标 | L6: 重点工作任务完成 | M6: 质量目标 | N6: ≥ | O6: 96 | P6: % | Q6: 项目实施的质量性
M7: 成本目标 | N7: ≤ | O7: 419 | P7: 万元 | Q7: 资金的成本性
M8: 时效目标 | N8: ≤ | O8: 12 | P8: 月 | Q8: 资金给付的及时性
L9: 履职目标实现 | M9: 数量目标 | N9: ≥ | O9: 680 | P9: 人、户 | Q9: 项目实施对象的数量值
K10: 效益指标 | L10: 履职效益 | M10: 社会效益目标 | N10: ≥ | O10: 96 | P10: % | Q10: 受助残疾人生活状况改善度
L11: 满意度 | M11: 服务对象满意度 | N11: ≥ | O11: 96 | P11: % | Q11: 享受项目对象满意度
